[Event "Live Chess"]
[Site "Chess.com"]
[Date "2024.06.02"]
[Round "-"]
[White "Ksenia_2013"]
[Black "80Times"]
[Result "0-1"]
[WhiteElo "982"]
[BlackElo "1885"]
[TimeControl "300"]
[EndTime "4:04:21 PDT"]
[Termination "80Times won by checkmate"]

1. e4 {[%clk 0:04:56.2]} 1... g6 {[%clk 0:04:58.6]} 2. Nc3 {[%clk 0:04:53.7]}
2... d6 {[%clk 0:04:58]} 3. Bc4 {[%clk 0:04:49.9]} 3... c6 {[%clk 0:04:57.2]} 4.
Nf3 {[%clk 0:04:47.7]} 4... Bg7 {[%clk 0:04:56.5]} 5. O-O {[%clk 0:04:43.9]}
5... h6 {[%clk 0:04:54.8]} 6. d3 {[%clk 0:04:39]} 6... Nd7 {[%clk 0:04:53.9]} 7.
Be3 {[%clk 0:04:34.7]} 7... b5 {[%clk 0:04:51.5]} 8. Bb3 {[%clk 0:04:32.7]} 8...
a5 {[%clk 0:04:50.9]} 9. Nh4 {[%clk 0:04:17.4]} 9... a4 {[%clk 0:04:48.7]} 10.
Bxf7+ {[%clk 0:04:15.4]} 10... Kxf7 {[%clk 0:04:44.4]} 11. Qf3+ {[%clk
0:04:13.6]} 11... Ngf6 {[%clk 0:04:43.5]} 12. Qg3 {[%clk 0:04:08.3]} 12... g5
{[%clk 0:04:41.6]} 13. Nf5 {[%clk 0:04:03.6]} 13... Ne5 {[%clk 0:04:40.3]} 14.
d4 {[%clk 0:03:43.7]} 14... Nc4 {[%clk 0:04:36.8]} 15. e5 {[%clk 0:03:38.7]}
15... Bxf5 {[%clk 0:04:34.4]} 16. exf6 {[%clk 0:03:36.2]} 16... Bxf6 {[%clk
0:04:32.8]} 17. Qf3 {[%clk 0:03:27]} 17... Qc8 {[%clk 0:04:28]} 18. Ne4 {[%clk
0:03:12.2]} 18... g4 {[%clk 0:04:04.9]} 19. Qg3 {[%clk 0:03:03.5]} 19... h5
{[%clk 0:03:58.4]} 20. Nxf6 {[%clk 0:03:00.1]} 20... exf6 {[%clk 0:03:52.3]} 21.
h3 {[%clk 0:02:47.3]} 21... gxh3 {[%clk 0:03:49.5]} 22. gxh3 {[%clk 0:02:44.9]}
22... Rg8 {[%clk 0:03:47.7]} 23. Bg5 {[%clk 0:02:38.6]} 23... Rxg5 {[%clk
0:03:46.6]} 24. Qg2 {[%clk 0:02:29.5]} 24... Bxh3 {[%clk 0:03:43.7]} 25. Qxg5
{[%clk 0:02:23]} 25... fxg5 {[%clk 0:03:42.5]} 26. Rfe1 {[%clk 0:02:19.3]} 26...
Qg4+ {[%clk 0:03:41.4]} 27. Kh1 {[%clk 0:02:17.1]} 27... Qg2# {[%clk 0:03:41.3]}
0-1

[Event "Live Chess"]
[Site "Chess.com"]
[Date "2024.06.02"]
[Round "-"]
[White "FlyingChessKestrel13"]
[Black "KeithArkell"]
[Result "0-1"]
[WhiteElo "2071"]
[BlackElo "2416"]
[TimeControl "300"]
[EndTime "4:04:25 PDT"]
[Termination "KeithArkell won by resignation"]

1. d4 {[%clk 0:04:56.1]} 1... e6 {[%clk 0:04:58.9]} 2. e4 {[%clk 0:04:50.6]}
2... d5 {[%clk 0:04:57.4]} 3. exd5 {[%clk 0:04:49.6]} 3... Qxd5 {[%clk
0:04:55.4]} 4. Nc3 {[%clk 0:04:47.3]} 4... Qd8 {[%clk 0:04:54.2]} 5. Nf3 {[%clk
0:04:46.2]} 5... Nf6 {[%clk 0:04:53.5]} 6. Bg5 {[%clk 0:04:44.2]} 6... c5 {[%clk
0:04:51.8]} 7. dxc5 {[%clk 0:04:41.1]} 7... Bxc5 {[%clk 0:04:46.3]} 8. Qxd8+
{[%clk 0:04:38.2]} 8... Kxd8 {[%clk 0:04:46.2]} 9. O-O-O+ {[%clk 0:04:36]} 9...
Ke7 {[%clk 0:04:45.1]} 10. Nb5 {[%clk 0:04:29.1]} 10... Na6 {[%clk 0:04:44.1]}
11. Bd3 {[%clk 0:04:24.7]} 11... h6 {[%clk 0:04:41.4]} 12. Bxf6+ {[%clk
0:04:23.4]} 12... gxf6 {[%clk 0:04:40.2]} 13. Rhe1 {[%clk 0:04:20.9]} 13... Bxf2
{[%clk 0:04:38.9]} 14. Re2 {[%clk 0:04:19.5]} 14... Bb6 {[%clk 0:04:37.7]} 15.
a3 {[%clk 0:04:12.8]} 15... Nc5 {[%clk 0:04:36]} 16. Bc4 {[%clk 0:04:07.6]}
16... f5 {[%clk 0:04:32.7]} 17. Nbd4 {[%clk 0:04:04.6]} 17... Kf6 {[%clk
0:04:28.9]} 18. Kb1 {[%clk 0:03:47]} 18... Bd7 {[%clk 0:04:21.9]} 19. Ka2 {[%clk
0:03:32.1]} 19... Rad8 {[%clk 0:04:18.6]} 20. Nb3 {[%clk 0:03:19.3]} 20... Ne4
{[%clk 0:04:14.4]} 21. Rde1 {[%clk 0:03:03.5]} 21... Bc6 {[%clk 0:04:10.8]} 22.
Bd3 {[%clk 0:02:43.8]} 22... a5 {[%clk 0:04:05.5]} 23. Nbd2 {[%clk 0:02:37.7]}
23... Nxd2 {[%clk 0:04:03]} 24. Nxd2 {[%clk 0:02:36.4]} 24... a4 {[%clk
0:03:57.7]} 25. Nc4 {[%clk 0:02:30.3]} 25... Bd4 {[%clk 0:03:49.1]} 26. Kb1
{[%clk 0:02:25.9]} 26... h5 {[%clk 0:03:31.2]} 27. Nd2 {[%clk 0:02:04.5]} 27...
Rhg8 {[%clk 0:03:21.4]} 28. Nf3 {[%clk 0:02:02.6]} 28... Bb6 {[%clk 0:03:10.3]}
29. Bc4 {[%clk 0:01:46.3]} 29... Bd5 {[%clk 0:03:04.1]} 30. Bb5 {[%clk
0:01:41.4]} 30... Bc6 {[%clk 0:02:55.6]} 31. Bc4 {[%clk 0:01:40.1]} 31... Rd6
{[%clk 0:02:51.9]} 32. h4 {[%clk 0:01:26.8]} 32... Rg4 {[%clk 0:02:48.5]} 33.
Bd3 {[%clk 0:01:20.8]} 33... Bxf3 {[%clk 0:02:46]} 34. gxf3 {[%clk 0:01:20.7]}
34... Rxh4 {[%clk 0:02:44.9]} 35. Rg2 {[%clk 0:01:14.5]} 35... Rf4 {[%clk
0:02:41.5]} 36. Rf1 {[%clk 0:01:10.5]} 36... h4 {[%clk 0:02:40.5]} 37. Rh2
{[%clk 0:01:09]} 37... Rd8 {[%clk 0:02:38]} 38. Rh3 {[%clk 0:01:03.2]} 38... Rg8
{[%clk 0:02:27.6]} 39. Rfh1 {[%clk 0:01:01.7]} 39... Rg3 {[%clk 0:02:25.4]} 40.
Rxh4 {[%clk 0:00:59]} 40... Rxh4 {[%clk 0:02:23.7]} 41. Rxh4 {[%clk 0:00:57.2]}
41... Rxf3 {[%clk 0:02:23]} 42. Rxa4 {[%clk 0:00:55.9]} 42... Bc5 {[%clk
0:02:18.5]} 43. Rc4 {[%clk 0:00:53]} 43... b6 {[%clk 0:02:17.1]} 44. b4 {[%clk
0:00:51.6]} 44... Bg1 {[%clk 0:02:15.7]} 45. Rc6 {[%clk 0:00:46.2]} 45... Kg5
{[%clk 0:02:13.9]} 46. Rc7 {[%clk 0:00:43.2]} 46... e5 {[%clk 0:02:04.9]} 47.
Rxf7 {[%clk 0:00:37.3]} 47... Bd4 {[%clk 0:02:02.4]} 48. Rd7 {[%clk 0:00:23.9]}
48... Bc3 {[%clk 0:01:58]} 49. Ka2 {[%clk 0:00:23]} 49... e4 {[%clk 0:01:57.5]}
50. Kb3 {[%clk 0:00:21.3]} 50... Bf6 {[%clk 0:01:54.1]} 0-1

[Event "Live Chess"]
[Site "Chess.com"]
[Date "2024.06.02"]
[Round "-"]
[White "Hoogleboogle"]
[Black "karina55"]
[Result "0-1"]
[WhiteElo "1345"]
[BlackElo "1929"]
[TimeControl "300"]
[EndTime "4:04:47 PDT"]
[Termination "karina55 won on time"]

1. d4 {[%clk 0:04:54.5]} 1... d5 {[%clk 0:04:58.2]} 2. c4 {[%clk 0:04:51.3]}
2... c6 {[%clk 0:04:55.6]} 3. Nc3 {[%clk 0:04:47]} 3... f5 {[%clk 0:04:52.9]} 4.
Bf4 {[%clk 0:04:25.5]} 4... e6 {[%clk 0:04:47.1]} 5. e3 {[%clk 0:04:24.4]} 5...
Nf6 {[%clk 0:04:45.1]} 6. cxd5 {[%clk 0:04:21.1]} 6... exd5 {[%clk 0:04:43.4]}
7. Nf3 {[%clk 0:04:15.8]} 7... Bd6 {[%clk 0:04:33.7]} 8. Bg3 {[%clk 0:04:11.2]}
8... Ne4 {[%clk 0:04:18.7]} 9. Nxe4 {[%clk 0:04:06.6]} 9... fxe4 {[%clk
0:04:15.4]} 10. Ne5 {[%clk 0:03:59.7]} 10... Qa5+ {[%clk 0:04:09.2]} 11. Qd2
{[%clk 0:03:49.8]} 11... Bb4 {[%clk 0:04:05.4]} 12. Rd1 {[%clk 0:03:13.4]} 12...
Bxd2+ {[%clk 0:04:02.9]} 13. Rxd2 {[%clk 0:03:12.3]} 13... Qxa2 {[%clk
0:03:53.2]} 14. Be2 {[%clk 0:03:06.1]} 14... O-O {[%clk 0:03:40.9]} 15. O-O
{[%clk 0:02:57.6]} 15... Nd7 {[%clk 0:03:31.6]} 16. Nxd7 {[%clk 0:01:39]} 16...
Bxd7 {[%clk 0:03:29.7]} 17. Bd6 {[%clk 0:01:36.8]} 17... Rf7 {[%clk 0:03:22.8]}
18. Ba3 {[%clk 0:01:11.7]} 18... Qb3 {[%clk 0:03:13.6]} 19. h3 {[%clk
0:01:00.9]} 19... Qb6 {[%clk 0:03:06.6]} 20. f4 {[%clk 0:00:56]} 20... exf3
{[%clk 0:02:51.6]} 21. Rxf3 {[%clk 0:00:43.9]} 21... Rxf3 {[%clk 0:02:49.5]} 22.
Bxf3 {[%clk 0:00:41.5]} 22... Re8 {[%clk 0:02:47.7]} 23. Re2 {[%clk 0:00:31.7]}
23... Qb3 {[%clk 0:02:37.7]} 24. Rf2 {[%clk 0:00:13.4]} 24... Qxe3 {[%clk
0:02:31.5]} 25. Bg4 {[%clk 0:00:09.8]} 25... Bxg4 {[%clk 0:02:27.9]} 26. hxg4
{[%clk 0:00:08.3]} 26... Qxd4 {[%clk 0:02:24.5]} 27. Kh2 {[%clk 0:00:04.3]}
27... Qxf2 {[%clk 0:02:19.8]} 0-1

[Event "Live Chess"]
[Site "Chess.com"]
[Date "2024.06.02"]
[Round "-"]
[White "JohanKjeldahl"]
[Black "Ksenia_2013"]
[Result "1-0"]
[WhiteElo "1793"]
[BlackElo "981"]
[TimeControl "300"]
[EndTime "4:05:31 PDT"]
[Termination "JohanKjeldahl won by checkmate"]

1. e4 {[%clk 0:04:58]} 1... e5 {[%clk 0:04:58.6]} 2. Nf3 {[%clk 0:04:57]} 2...
Nc6 {[%clk 0:04:56.9]} 3. d4 {[%clk 0:04:55.6]} 3... exd4 {[%clk 0:04:55.5]} 4.
c3 {[%clk 0:04:54.3]} 4... dxc3 {[%clk 0:04:54.2]} 5. Bc4 {[%clk 0:04:53.2]}
5... cxb2 {[%clk 0:04:51.2]} 6. Bxb2 {[%clk 0:04:52.2]} 6... Nf6 {[%clk
0:04:46.8]} 7. e5 {[%clk 0:04:49.6]} 7... Ne4 {[%clk 0:04:44.7]} 8. Qd5 {[%clk
0:04:47.1]} 8... Bb4+ {[%clk 0:04:36]} 9. Kf1 {[%clk 0:04:41.2]} 9... Nd2+
{[%clk 0:04:27.2]} 10. Nbxd2 {[%clk 0:04:38.4]} 10... Bxd2 {[%clk 0:04:24.6]}
11. Qxf7# {[%clk 0:04:34.5]} 1-0

[Event "Live Chess"]
[Site "Chess.com"]
[Date "2024.06.02"]
[Round "-"]
[White "booktrunk"]
[Black "stevochess11"]
[Result "0-1"]
[WhiteElo "1497"]
[BlackElo "1709"]
[TimeControl "300"]
[EndTime "4:05:38 PDT"]
[Termination "stevochess11 won by resignation"]

1. d4 {[%clk 0:04:50.9]} 1... Nf6 {[%clk 0:04:58.9]} 2. Nc3 {[%clk 0:04:43.9]}
2... d5 {[%clk 0:04:57.1]} 3. Bf4 {[%clk 0:04:39.5]} 3... c5 {[%clk 0:04:54.6]}
4. dxc5 {[%clk 0:04:33]} 4... Nc6 {[%clk 0:04:52.5]} 5. Nb5 {[%clk 0:04:27.9]}
5... e5 {[%clk 0:04:50.9]} 6. Bg5 {[%clk 0:04:21.6]} 6... Bxc5 {[%clk
0:04:48.7]} 7. c3 {[%clk 0:04:19.1]} 7... Bxf2+ {[%clk 0:04:43.6]} 8. Kxf2
{[%clk 0:04:13.5]} 8... Ne4+ {[%clk 0:04:42.7]} 9. Ke1 {[%clk 0:04:11.4]} 9...
Nxg5 {[%clk 0:04:39.7]} 10. Nf3 {[%clk 0:04:09.1]} 10... a6 {[%clk 0:04:36]} 11.
Nxg5 {[%clk 0:04:01.5]} 11... axb5 {[%clk 0:04:35.1]} 12. Nf3 {[%clk 0:04:00]}
12... Bg4 {[%clk 0:04:31.6]} 13. g3 {[%clk 0:03:57.5]} 13... e4 {[%clk
0:04:28.2]} 14. Nd4 {[%clk 0:03:54.6]} 14... O-O {[%clk 0:04:19.9]} 15. Nxc6
{[%clk 0:03:52.6]} 15... bxc6 {[%clk 0:04:18.5]} 16. Bg2 {[%clk 0:03:52.1]}
16... Qb6 {[%clk 0:04:06.1]} 17. Qd4 {[%clk 0:03:48.6]} 17... Qxd4 {[%clk
0:03:57.7]} 18. cxd4 {[%clk 0:03:47.4]} 18... e3 {[%clk 0:03:55.8]} 19. h3
{[%clk 0:03:44.9]} 19... Bf5 {[%clk 0:03:52.9]} 20. Rc1 {[%clk 0:03:42.5]} 20...
Rxa2 {[%clk 0:03:49.7]} 21. g4 {[%clk 0:03:36.3]} 21... Bg6 {[%clk 0:03:41.9]}
22. b3 {[%clk 0:03:21.3]} 22... Rb2 {[%clk 0:03:29.1]} 23. Kf1 {[%clk
0:03:18.3]} 23... Ra8 {[%clk 0:03:24.8]} 24. Kg1 {[%clk 0:03:16.7]} 24... Rxe2
{[%clk 0:03:20]} 25. Bf1 {[%clk 0:03:15.5]} 25... Rb2 {[%clk 0:03:15.1]} 26.
Rxc6 {[%clk 0:03:13.7]} 26... e2 {[%clk 0:03:09.5]} 27. Bxe2 {[%clk 0:03:08.3]}
27... Rxe2 {[%clk 0:03:08.4]} 0-1

[Event "Live Chess"]
[Site "Chess.com"]
[Date "2024.06.02"]
[Round "-"]
[White "ClassyChameleon"]
[Black "Tatarinov_Maxim"]
[Result "0-1"]
[WhiteElo "1529"]
[BlackElo "2307"]
[TimeControl "300"]
[EndTime "4:05:47 PDT"]
[Termination "Tatarinov_Maxim won by resignation"]

1. e4 {[%clk 0:04:58.4]} 1... c5 {[%clk 0:04:58.3]} 2. Nf3 {[%clk 0:04:57.8]}
2... Nc6 {[%clk 0:04:56.7]} 3. d4 {[%clk 0:04:57.4]} 3... cxd4 {[%clk
0:04:56.6]} 4. Nxd4 {[%clk 0:04:56.9]} 4... Nf6 {[%clk 0:04:55.2]} 5. Nxc6
{[%clk 0:04:55.3]} 5... bxc6 {[%clk 0:04:54.1]} 6. e5 {[%clk 0:04:55]} 6... Nd5
{[%clk 0:04:52.7]} 7. Nc3 {[%clk 0:04:54]} 7... Nxc3 {[%clk 0:04:50.9]} 8. bxc3
{[%clk 0:04:53.9]} 8... g6 {[%clk 0:04:46.9]} 9. Bf4 {[%clk 0:04:49.6]} 9... Bg7
{[%clk 0:04:45.9]} 10. Bc4 {[%clk 0:04:45.5]} 10... Qa5 {[%clk 0:04:41.5]} 11.
Qd3 {[%clk 0:04:39.9]} 11... Bxe5 {[%clk 0:04:39]} 12. Bxe5 {[%clk 0:04:20.6]}
12... Qxe5+ {[%clk 0:04:38.9]} 13. Qe2 {[%clk 0:04:20.1]} 13... Qxc3+ {[%clk
0:04:35]} 14. Kd1 {[%clk 0:04:15]} 14... Qxa1+ {[%clk 0:04:33.8]} 15. Kd2 {[%clk
0:04:14.9]} 15... Qxh1 {[%clk 0:04:31.2]} 16. Qf3 {[%clk 0:04:11.9]} 16... O-O
{[%clk 0:04:27.5]} 17. Qg4 {[%clk 0:04:03.9]} 17... d5 {[%clk 0:04:24.9]} 18.
Qxc8 {[%clk 0:04:01.9]} 0-1

[Event "Live Chess"]
[Site "Chess.com"]
[Date "2024.06.02"]
[Round "-"]
[White "JanMur7"]
[Black "RamsayFlayer"]
[Result "1-0"]
[WhiteElo "2291"]
[BlackElo "1924"]
[TimeControl "300"]
[EndTime "4:06:06 PDT"]
[Termination "JanMur7 won by resignation"]

1. c4 {[%clk 0:04:58.8]} 1... e5 {[%clk 0:04:58.4]} 2. Nc3 {[%clk 0:04:56.9]}
2... Nf6 {[%clk 0:04:57]} 3. Nf3 {[%clk 0:04:55.1]} 3... Nc6 {[%clk 0:04:55.4]}
4. e4 {[%clk 0:04:53.1]} 4... Bc5 {[%clk 0:04:48.3]} 5. Nxe5 {[%clk 0:04:51.7]}
5... Nxe5 {[%clk 0:04:46.9]} 6. d4 {[%clk 0:04:49.7]} 6... Bd6 {[%clk
0:04:44.1]} 7. c5 {[%clk 0:04:48.7]} 7... Bxc5 {[%clk 0:04:36.2]} 8. dxe5 {[%clk
0:04:46.5]} 8... Ng8 {[%clk 0:04:29.7]} 9. Qg4 {[%clk 0:04:45.6]} 9... g6 {[%clk
0:04:18.2]} 10. Qf3 {[%clk 0:04:39.2]} 10... Ne7 {[%clk 0:04:09.5]} 11. Bc4
{[%clk 0:04:34.2]} 11... O-O {[%clk 0:03:30.6]} 12. Bh6 {[%clk 0:04:30.5]} 12...
Nc6 {[%clk 0:03:28.9]} 13. Nd5 {[%clk 0:04:22.5]} 13... Nxe5 {[%clk 0:03:19.2]}
14. Qf6 {[%clk 0:04:20.9]} 14... Qxf6 {[%clk 0:03:11.3]} 15. Nxf6+ {[%clk
0:04:20.8]} 15... Kh8 {[%clk 0:03:10.1]} 16. Bxf8 {[%clk 0:04:19.4]} 16... Bxf8
{[%clk 0:03:07.6]} 17. Be2 {[%clk 0:04:16.2]} 17... Bb4+ {[%clk 0:03:03.8]} 18.
Kf1 {[%clk 0:04:12.6]} 18... d6 {[%clk 0:02:58.2]} 19. Nd5 {[%clk 0:04:11]}
19... Ba5 {[%clk 0:02:53.6]} 20. f4 {[%clk 0:03:47]} 20... c6 {[%clk 0:02:34.5]}
21. fxe5 {[%clk 0:03:40.7]} 21... cxd5 {[%clk 0:02:33.3]} 22. exd6 {[%clk
0:03:34.2]} 22... dxe4 {[%clk 0:02:30.4]} 23. Bc4 {[%clk 0:03:24]} 23... Bb4
{[%clk 0:02:22.2]} 24. Rd1 {[%clk 0:03:20.2]} 24... Bd7 {[%clk 0:02:09.4]} 25.
a3 {[%clk 0:02:51.2]} 25... Bc5 {[%clk 0:02:02.6]} 26. b4 {[%clk 0:02:48.4]}
26... Bb6 {[%clk 0:01:58.7]} 27. h3 {[%clk 0:02:45.9]} 27... Rc8 {[%clk
0:01:50.7]} 28. Bd5 {[%clk 0:02:41.5]} 28... f5 {[%clk 0:01:43.9]} 29. g4 {[%clk
0:01:56.8]} 29... Bb5+ {[%clk 0:01:38.1]} 30. Kg2 {[%clk 0:01:43.8]} 30... Rc2+
{[%clk 0:01:36.8]} 31. Kg3 {[%clk 0:01:42.1]} 31... Bf2+ {[%clk 0:01:18.4]} 32.
Kf4 {[%clk 0:01:38.2]} 32... e3 {[%clk 0:01:08.8]} 33. Bf3 {[%clk 0:01:27]}
33... Bd7 {[%clk 0:01:01.1]} 34. gxf5 {[%clk 0:01:23.4]} 34... gxf5 {[%clk
0:00:59.4]} 35. Rc1 {[%clk 0:01:16.5]} 35... Ra2 {[%clk 0:00:28.2]} 36. Rc7
{[%clk 0:01:02.6]} 36... e2 {[%clk 0:00:24.9]} 37. Bxe2 {[%clk 0:00:47.8]} 37...
Rxe2 {[%clk 0:00:22.4]} 38. Rxd7 {[%clk 0:00:45]} 38... Be3+ {[%clk 0:00:19.5]}
39. Kf3 {[%clk 0:00:42.2]} 39... Ra2 {[%clk 0:00:18]} 40. Kxe3 {[%clk
0:00:37.6]} 40... Rxa3+ {[%clk 0:00:17.6]} 41. Kf4 {[%clk 0:00:36.3]} 41... Rb3
{[%clk 0:00:17]} 42. Rg1 {[%clk 0:00:33.6]} 42... h5 {[%clk 0:00:15.8]} 43. Kxf5
{[%clk 0:00:30.6]} 43... Rxb4 {[%clk 0:00:15]} 44. Kg6 {[%clk 0:00:29.5]} 1-0

[Event "Live Chess"]
[Site "Chess.com"]
[Date "2024.06.02"]
[Round "-"]
[White "NottheBishopSacrifice"]
[Black "slava_ukr"]
[Result "1/2-1/2"]
[WhiteElo "2325"]
[BlackElo "2405"]
[TimeControl "300"]
[EndTime "4:06:13 PDT"]
[Termination "Game drawn - timeout vs insufficient material"]

1. d4 {[%clk 0:04:58.1]} 1... d5 {[%clk 0:04:59.3]} 2. Nf3 {[%clk 0:04:56.4]}
2... Bf5 {[%clk 0:04:57.7]} 3. Bf4 {[%clk 0:04:54.7]} 3... c6 {[%clk 0:04:55.2]}
4. e3 {[%clk 0:04:52.1]} 4... Nd7 {[%clk 0:04:53.9]} 5. Bd3 {[%clk 0:04:50]}
5... e6 {[%clk 0:04:51.5]} 6. O-O {[%clk 0:04:48.1]} 6... Ngf6 {[%clk
0:04:50.6]} 7. c4 {[%clk 0:04:46.5]} 7... Be7 {[%clk 0:04:49.8]} 8. Nc3 {[%clk
0:04:44.9]} 8... O-O {[%clk 0:04:48.5]} 9. Bxf5 {[%clk 0:04:42.8]} 9... exf5
{[%clk 0:04:47]} 10. cxd5 {[%clk 0:04:41.9]} 10... cxd5 {[%clk 0:04:46.3]} 11.
Qb3 {[%clk 0:04:40.9]} 11... Nb6 {[%clk 0:04:35.9]} 12. Ne5 {[%clk 0:04:38.2]}
12... Ne4 {[%clk 0:04:04.5]} 13. Nxe4 {[%clk 0:04:35.4]} 13... fxe4 {[%clk
0:04:02.7]} 14. h3 {[%clk 0:04:32.7]} 14... f6 {[%clk 0:03:53.3]} 15. Ng4 {[%clk
0:04:31.6]} 15... h5 {[%clk 0:03:51]} 16. Nh2 {[%clk 0:04:30.5]} 16... Bd6
{[%clk 0:03:47.2]} 17. Bxd6 {[%clk 0:04:28.1]} 17... Qxd6 {[%clk 0:03:46.1]} 18.
Rac1 {[%clk 0:04:26.9]} 18... Rac8 {[%clk 0:03:43.2]} 19. Qb5 {[%clk 0:04:24.9]}
19... Qd7 {[%clk 0:03:29.8]} 20. Qxd7 {[%clk 0:04:21.8]} 20... Nxd7 {[%clk
0:03:28.8]} 21. Rfd1 {[%clk 0:04:21.1]} 21... Kf7 {[%clk 0:03:26.5]} 22. Nf1
{[%clk 0:04:18.6]} 22... Ke6 {[%clk 0:03:25.6]} 23. Ng3 {[%clk 0:04:16.9]} 23...
g6 {[%clk 0:03:24]} 24. Ne2 {[%clk 0:04:16.3]} 24... g5 {[%clk 0:03:17.6]} 25.
g4 {[%clk 0:04:11.3]} 25... hxg4 {[%clk 0:03:02.5]} 26. hxg4 {[%clk 0:04:11.2]}
26... Rh8 {[%clk 0:02:53]} 27. Ng3 {[%clk 0:04:09.4]} 27... Nb6 {[%clk
0:02:30.1]} 28. Nf5 {[%clk 0:04:05.3]} 28... Rxc1 {[%clk 0:02:27.6]} 29. Rxc1
{[%clk 0:04:02.7]} 29... Rc8 {[%clk 0:02:26.5]} 30. Rc5 {[%clk 0:03:56.4]} 30...
Rxc5 {[%clk 0:02:22.8]} 31. dxc5 {[%clk 0:03:54]} 31... Na4 {[%clk 0:02:21.9]}
32. b4 {[%clk 0:03:52.2]} 32... a5 {[%clk 0:02:06.9]} 33. Nd4+ {[%clk
0:03:47.9]} 33... Kd7 {[%clk 0:02:05.8]} 34. a3 {[%clk 0:03:47.1]} 34... axb4
{[%clk 0:02:04.6]} 35. axb4 {[%clk 0:03:47]} 35... Nc3 {[%clk 0:01:23.1]} 36.
Kg2 {[%clk 0:03:42.4]} 36... Na2 {[%clk 0:01:21.9]} 37. b5 {[%clk 0:03:38.9]}
37... Nc3 {[%clk 0:01:21]} 38. Kf1 {[%clk 0:03:25.6]} 38... Na4 {[%clk
0:01:13.9]} 39. Nb3 {[%clk 0:03:24.2]} 39... Nc3 {[%clk 0:01:12.9]} 40. Nd4
{[%clk 0:03:23.1]} 40... Na4 {[%clk 0:01:12]} 41. c6+ {[%clk 0:03:22.3]} 41...
bxc6 {[%clk 0:01:10.9]} 42. Nxc6 {[%clk 0:03:18.4]} 42... Nc3 {[%clk 0:01:07.1]}
43. Nd4 {[%clk 0:03:17]} 43... Kd6 {[%clk 0:00:45.9]} 44. b6 {[%clk 0:03:15.3]}
44... Na4 {[%clk 0:00:44.8]} 45. b7 {[%clk 0:03:13.9]} 45... Kc7 {[%clk
0:00:43.8]} 46. Nc6 {[%clk 0:03:08.7]} 46... Kxb7 {[%clk 0:00:41.9]} 47. Ne7
{[%clk 0:03:06.7]} 47... Nb6 {[%clk 0:00:38.2]} 48. Ng8 {[%clk 0:02:59.5]} 48...
Nd7 {[%clk 0:00:36.4]} 49. Ne7 {[%clk 0:02:58.3]} 49... Ne5 {[%clk 0:00:33.4]}
50. Nxd5 {[%clk 0:02:55.9]} 50... Nxg4 {[%clk 0:00:32.6]} 51. Ke2 {[%clk
0:02:53.8]} 51... Kc6 {[%clk 0:00:31.7]} 52. Nc3 {[%clk 0:02:52.5]} 52... f5
{[%clk 0:00:24.7]} 53. Nb1 {[%clk 0:02:49.4]} 53... Kd6 {[%clk 0:00:22.8]} 54.
Nd2 {[%clk 0:02:48]} 54... Ne5 {[%clk 0:00:20.6]} 55. Nf1 {[%clk 0:02:46.1]}
55... Ke6 {[%clk 0:00:19.6]} 56. Ng3 {[%clk 0:02:45.1]} 56... Nf3 {[%clk
0:00:17.4]} 57. Nh5 {[%clk 0:02:41.5]} 57... Ke5 {[%clk 0:00:16.7]} 58. Ng7
{[%clk 0:02:38.3]} 58... f4 {[%clk 0:00:16]} 59. Nh5 {[%clk 0:02:35.5]} 59...
Ng1+ {[%clk 0:00:14.6]} 60. Kf1 {[%clk 0:02:28.9]} 60... Nf3 {[%clk 0:00:13.8]}
61. Ng7 {[%clk 0:02:25.8]} 61... Nd2+ {[%clk 0:00:12.9]} 62. Ke2 {[%clk
0:02:24.3]} 62... Nc4 {[%clk 0:00:12.2]} 63. Ne8 {[%clk 0:02:20.5]} 63... g4
{[%clk 0:00:10.4]} 64. exf4+ {[%clk 0:02:09.7]} 64... Kxf4 {[%clk 0:00:09.5]}
65. Nc7 {[%clk 0:02:07.9]} 65... g3 {[%clk 0:00:06.8]} 66. fxg3+ {[%clk
0:02:03.2]} 66... Kxg3 {[%clk 0:00:05.8]} 67. Nb5 {[%clk 0:02:01.3]} 67... e3
{[%clk 0:00:04.5]} 68. Nd4 {[%clk 0:01:57.5]} 68... Ne5 {[%clk 0:00:03.7]} 69.
Ne6 {[%clk 0:01:55.7]} 69... Nf3 {[%clk 0:00:01.9]} 70. Ng7 {[%clk 0:01:52]}
70... Nd4+ {[%clk 0:00:01.1]} 71. Ke1 {[%clk 0:01:50.6]} 71... e2 {[%clk
0:00:00.4]} 72. Nh5+ {[%clk 0:01:47.9]} 1/2-1/2